{"text_format":"3","workbook":"xlsx","n_sheets":1,"sheets":["Aylık Aile Bütçesi"],"read":"whole","date_system":"1900"}

{"sheet":"Aylık Aile Bütçesi","index":0,"n_rows":67,"n_cols":10,"rows_kept":67}
[null,"Aylık Aile Bütçesi"]
[null,"Özet Tablosu","Toplam\nTahmini Masraf","Toplam\nFiili Maliyet","Toplam\nFark",null,"Tahmini Aylık Gelir Kaynağı","Tutar"]
[null,null,{"$f":"Barınma[[#Totals],[Öngörülen\nMaliyet]]+Ulaşım[[#Totals],[Öngörülen\nMaliyet]]+Sigorta[[#Totals],[Öngörülen\nMaliyet]]+Yiyecek[[#Totals],[Öngörülen\nMaliyet]]+Çocuklar[[#Totals],[Öngörülen\nMaliyet]]+Yasal[[#Totals],[Öngörülen\nMaliyet]]+Tasarruf[[#Totals],[Öngörülen\nMaliyet]]+Krediler[[#Totals],[Öngörülen\nMaliyet]]+Eğlence[[#Totals],[Öngörülen\nMaliyet]]+Vergiler[[#Totals],[Öngörülen \nMaliyet]]+KişiselBakım[[#Totals],[Öngörülen\nMaliyet]]+Evcil_Hayvanlar[[#Totals],[Öngörülen\nMaliyet]]+Hediyeler[[#Totals],[Öngörülen\nMaliyet]]","v":{"v":1203,"d":"1,203 ₺"}},{"$f":"Barınma[[#Totals],[Fiili\nMaliyet]]+Ulaşım[[#Totals],[Fiili\nMaliyet]]+Sigorta[[#Totals],[Fiili\nMaliyet]]+Yiyecek[[#Totals],[Fiili\nMaliyet]]+Çocuklar[[#Totals],[Fiili\nMaliyet]]+Yasal[[#Totals],[Fiili\nMaliyet]]+Tasarruf[[#Totals],[Fiili\nMaliyet]]+Krediler[[#Totals],[Fiili\nMaliyet]]+Eğlence[[#Totals],[Fiili\nMaliyet]]+Vergiler[[#Totals],[Fiili \nMaliyet]]+KişiselBakım[[#Totals],[Fiili\nMaliyet]]+Evcil_Hayvanlar[[#Totals],[Fiili\nMaliyet]]+Hediyeler[[#Totals],[Fiili\nMaliyet]]","v":{"v":1317,"d":"1,317 ₺"}},{"$f":"Barınma[[#Totals],[Fark]]+Ulaşım[[#Totals],[Fark]]+Sigorta[[#Totals],[Fark]]+Yiyecek[[#Totals],[Fark]]+Çocuklar[[#Totals],[Fark]]+Yasal[[#Totals],[Fark]]+Tasarruf[[#Totals],[Fark]]+Krediler[[#Totals],[Fark]]+Eğlence[[#Totals],[Fark]]+Vergiler[[#Totals],[Fark]]+KişiselBakım[[#Totals],[Fark]]+Evcil_Hayvanlar[[#Totals],[Fark]]+Hediyeler[[#Totals],[Fark]]","v":{"v":-114,"d":"-114 ₺"}},null,"Gelir 1",{"v":4000,"d":"4,000 ₺"}]
[{"$nulls":6},"Gelir 2",{"v":1200,"d":"1,200 ₺"}]
[null,"Barınma","Öngörülen\nMaliyet","Fiili\nMaliyet","Fark",null,"Ek gelir",{"v":300,"d":"300 ₺"}]
[null,"Konut kredisi veya kira",{"v":1000,"d":"1,000 ₺"},{"v":1000,"d":"1,000 ₺"},{"$f":"Barınma[Öngörülen\nMaliyet]-Barınma[Fiili\nMaliyet]","v":{"v":0,"d":"0 ₺"}},null,"Toplam aylık gelir",{"$f":"SUM(H3:H5)","v":{"v":5500,"d":"5,500 ₺"}}]
[null,"İkinci konut kredisi veya kira",{"v":0,"d":"0 ₺"},{"v":0,"d":"0 ₺"},{"$f":"Barınma[Öngörülen\nMaliyet]-Barınma[Fiili\nMaliyet]","v":{"v":0,"d":"0 ₺"}}]
[null,"Telefon",{"v":62,"d":"62 ₺"},{"v":100,"d":"100 ₺"},{"$f":"Barınma[Öngörülen\nMaliyet]-Barınma[Fiili\nMaliyet]","v":{"v":-38,"d":"-38 ₺"}},null,"Fiili Aylık Gelir Kaynağı","Tutar"]
[null,"Elektrik",{"v":44,"d":"44 ₺"},{"v":125,"d":"125 ₺"},{"$f":"Barınma[Öngörülen\nMaliyet]-Barınma[Fiili\nMaliyet]","v":{"v":-81,"d":"-81 ₺"}},null,"Gelir 1",{"v":4000,"d":"4,000 ₺"}]
[null,"Doğalgaz",{"v":22,"d":"22 ₺"},{"v":35,"d":"35 ₺"},{"$f":"Barınma[Öngörülen\nMaliyet]-Barınma[Fiili\nMaliyet]","v":{"v":-13,"d":"-13 ₺"}},null,"Gelir 2",{"v":1200,"d":"1,200 ₺"}]
[null,"Su ve kanalizasyon",{"v":8,"d":"8 ₺"},{"v":8,"d":"8 ₺"},{"$f":"Barınma[Öngörülen\nMaliyet]-Barınma[Fiili\nMaliyet]","v":{"v":0,"d":"0 ₺"}},null,"Ek gelir",{"v":300,"d":"300 ₺"}]
[null,"Kablolu TV",{"v":34,"d":"34 ₺"},{"v":39,"d":"39 ₺"},{"$f":"Barınma[Öngörülen\nMaliyet]-Barınma[Fiili\nMaliyet]","v":{"v":-5,"d":"-5 ₺"}},null,"Toplam aylık gelir",{"$f":"SUM(H9:H11)","v":{"v":5500,"d":"5,500 ₺"}}]
[null,"Atık temizleme",{"v":10,"d":"10 ₺"},{"v":10,"d":"10 ₺"},{"$f":"Barınma[Öngörülen\nMaliyet]-Barınma[Fiili\nMaliyet]","v":{"v":0,"d":"0 ₺"}}]
[null,"Bakım veya onarım",{"v":23,"d":"23 ₺"},{"v":0,"d":"0 ₺"},{"$f":"Barınma[Öngörülen\nMaliyet]-Barınma[Fiili\nMaliyet]","v":{"v":23,"d":"23 ₺"}},null,"Bakiye","Tutar"]
[null,"Malzemeler",{"v":0,"d":"0 ₺"},{"v":0,"d":"0 ₺"},{"$f":"Barınma[Öngörülen\nMaliyet]-Barınma[Fiili\nMaliyet]","v":{"v":0,"d":"0 ₺"}},null,"Tahmini bakiye",{"$f":"SUM(H6-'Aylık Aile Bütçesi'!$C$3:$C$3)","v":{"v":4297,"d":"4,297 ₺"}}]
[null,"Diğer",{"v":0,"d":"0 ₺"},{"v":0,"d":"0 ₺"},{"$f":"Barınma[Öngörülen\nMaliyet]-Barınma[Fiili\nMaliyet]","v":{"v":0,"d":"0 ₺"}},null,"Fiili bakiye",{"$f":"SUM(H12-D3)","v":{"v":4183,"d":"4,183 ₺"}}]
[null,"Toplam",{"$f":"SUBTOTAL(109,Barınma[Öngörülen\nMaliyet])","v":{"v":1203,"d":"1,203 ₺"}},{"$f":"SUBTOTAL(109,Barınma[Fiili\nMaliyet])","v":{"v":1317,"d":"1,317 ₺"}},{"$f":"SUBTOTAL(109,Barınma[Fark])","v":{"v":-114,"d":"-114 ₺"}},null,"Fark",{"$f":"SUM(H16-H15)","v":{"v":-114,"d":"-114 ₺"}}]
[]
[null,"Ulaşım","Öngörülen\nMaliyet","Fiili\nMaliyet","Fark",null,"Krediler","Öngörülen\nMaliyet","Fiili\nMaliyet","Fark"]
[null,"1. aracın ödemesi",null,null,{"$f":"Ulaşım[Öngörülen\nMaliyet]-Ulaşım[Fiili\nMaliyet]","v":{"v":0,"d":"0 ₺"}},null,"Kişisel",null,null,{"$f":"Krediler[Öngörülen\nMaliyet]-Krediler[Fiili\nMaliyet]","v":{"v":0,"d":"0 ₺"}}]
[null,"2. aracın ödemesi",null,null,{"$f":"Ulaşım[Öngörülen\nMaliyet]-Ulaşım[Fiili\nMaliyet]","v":{"v":0,"d":"0 ₺"}},null,"Öğrenci",null,null,{"$f":"Krediler[Öngörülen\nMaliyet]-Krediler[Fiili\nMaliyet]","v":{"v":0,"d":"0 ₺"}}]
[null,"Otobüs/taksi ücretleri",null,null,{"$f":"Ulaşım[Öngörülen\nMaliyet]-Ulaşım[Fiili\nMaliyet]","v":{"v":0,"d":"0 ₺"}},null,"Kredi kartı",null,null,{"$f":"Krediler[Öngörülen\nMaliyet]-Krediler[Fiili\nMaliyet]","v":{"v":0,"d":"0 ₺"}}]
[null,"Sigorta",null,null,{"$f":"Ulaşım[Öngörülen\nMaliyet]-Ulaşım[Fiili\nMaliyet]","v":{"v":0,"d":"0 ₺"}},null,"Kredi kartı",null,null,{"$f":"Krediler[Öngörülen\nMaliyet]-Krediler[Fiili\nMaliyet]","v":{"v":0,"d":"0 ₺"}}]
[null,"Ruhsat alma",null,null,{"$f":"Ulaşım[Öngörülen\nMaliyet]-Ulaşım[Fiili\nMaliyet]","v":{"v":0,"d":"0 ₺"}},null,"Kredi kartı",null,null,{"$f":"Krediler[Öngörülen\nMaliyet]-Krediler[Fiili\nMaliyet]","v":{"v":0,"d":"0 ₺"}}]
[null,"Yakıt",null,null,{"$f":"Ulaşım[Öngörülen\nMaliyet]-Ulaşım[Fiili\nMaliyet]","v":{"v":0,"d":"0 ₺"}},null,"Diğer",null,null,{"$f":"Krediler[Öngörülen\nMaliyet]-Krediler[Fiili\nMaliyet]","v":{"v":0,"d":"0 ₺"}}]
[null,"Bakım",null,null,{"$f":"Ulaşım[Öngörülen\nMaliyet]-Ulaşım[Fiili\nMaliyet]","v":{"v":0,"d":"0 ₺"}},null,"Toplam",{"$f":"SUBTOTAL(109,Krediler[Öngörülen\nMaliyet])","v":{"v":0,"d":"0 ₺"}},{"$f":"SUBTOTAL(109,Krediler[Fiili\nMaliyet])","v":{"v":0,"d":"0 ₺"}},{"$f":"SUBTOTAL(109,Krediler[Fark])","v":{"v":0,"d":"0 ₺"}}]
[null,"Diğer",null,null,{"$f":"Ulaşım[Öngörülen\nMaliyet]-Ulaşım[Fiili\nMaliyet]","v":{"v":0,"d":"0 ₺"}}]
[null,"Toplam",{"$f":"SUBTOTAL(109,Ulaşım[Öngörülen\nMaliyet])","v":{"v":0,"d":"0 ₺"}},{"$f":"SUBTOTAL(109,Ulaşım[Fiili\nMaliyet])","v":{"v":0,"d":"0 ₺"}},{"$f":"SUBTOTAL(109,Ulaşım[Fark])","v":{"v":0,"d":"0 ₺"}},null,"Eğlence","Öngörülen\nMaliyet","Fiili\nMaliyet","Fark"]
[{"$nulls":6},"Video/DVD",null,null,{"$f":"Eğlence[Öngörülen\nMaliyet]-Eğlence[Fiili\nMaliyet]","v":{"v":0,"d":"0 ₺"}}]
[null,"Sigorta","Öngörülen\nMaliyet","Fiili\nMaliyet","Fark",null,"CD’ler",null,null,{"$f":"Eğlence[Öngörülen\nMaliyet]-Eğlence[Fiili\nMaliyet]","v":{"v":0,"d":"0 ₺"}}]
[null,"Ev",null,null,{"$f":"Sigorta[Öngörülen\nMaliyet]-Sigorta[Fiili\nMaliyet]","v":{"v":0,"d":"0 ₺"}},null,"Filmler",null,null,{"$f":"Eğlence[Öngörülen\nMaliyet]-Eğlence[Fiili\nMaliyet]","v":{"v":0,"d":"0 ₺"}}]
[null,"Sağlık",null,null,{"$f":"Sigorta[Öngörülen\nMaliyet]-Sigorta[Fiili\nMaliyet]","v":{"v":0,"d":"0 ₺"}},null,"Konserler",null,null,{"$f":"Eğlence[Öngörülen\nMaliyet]-Eğlence[Fiili\nMaliyet]","v":{"v":0,"d":"0 ₺"}}]
[null,"Yaşam",null,null,{"$f":"Sigorta[Öngörülen\nMaliyet]-Sigorta[Fiili\nMaliyet]","v":{"v":0,"d":"0 ₺"}},null,"Spor etkinlikleri",null,null,{"$f":"Eğlence[Öngörülen\nMaliyet]-Eğlence[Fiili\nMaliyet]","v":{"v":0,"d":"0 ₺"}}]
[null,"Diğer",null,null,{"$f":"Sigorta[Öngörülen\nMaliyet]-Sigorta[Fiili\nMaliyet]","v":{"v":0,"d":"0 ₺"}},null,"Tiyatro",null,null,{"$f":"Eğlence[Öngörülen\nMaliyet]-Eğlence[Fiili\nMaliyet]","v":{"v":0,"d":"0 ₺"}}]
[null,"Toplam",{"$f":"SUBTOTAL(109,Sigorta[Öngörülen\nMaliyet])","v":{"v":0,"d":"0 ₺"}},{"$f":"SUBTOTAL(109,Sigorta[Fiili\nMaliyet])","v":{"v":0,"d":"0 ₺"}},{"$f":"SUBTOTAL(109,Sigorta[Fark])","v":{"v":0,"d":"0 ₺"}},null,"Diğer",null,null,{"$f":"Eğlence[Öngörülen\nMaliyet]-Eğlence[Fiili\nMaliyet]","v":{"v":0,"d":"0 ₺"}}]
[{"$nulls":6},"Toplam",{"$f":"SUBTOTAL(109,Eğlence[Öngörülen\nMaliyet])","v":{"v":0,"d":"0 ₺"}},{"$f":"SUBTOTAL(109,Eğlence[Fiili\nMaliyet])","v":{"v":0,"d":"0 ₺"}},{"$f":"SUBTOTAL(109,Eğlence[Fark])","v":{"v":0,"d":"0 ₺"}}]
[null,"Yiyecek","Öngörülen\nMaliyet","Fiili\nMaliyet","Fark"]
[null,"Market alışverişi",null,null,{"$f":"Yiyecek[Öngörülen\nMaliyet]-Yiyecek[Fiili\nMaliyet]","v":{"v":0,"d":"0 ₺"}},null,"Vergiler","Öngörülen \nMaliyet","Fiili \nMaliyet","Fark"]
[null,"Dışarıda yemek",null,null,{"$f":"Yiyecek[Öngörülen\nMaliyet]-Yiyecek[Fiili\nMaliyet]","v":{"v":0,"d":"0 ₺"}},null,"Federal",null,null,{"$f":"Vergiler[Öngörülen \nMaliyet]-Vergiler[Fiili \nMaliyet]","v":{"v":0,"d":"0 ₺"}}]
[null,"Diğer",null,null,{"$f":"Yiyecek[Öngörülen\nMaliyet]-Yiyecek[Fiili\nMaliyet]","v":{"v":0,"d":"0 ₺"}},null,"Devlet",null,null,{"$f":"Vergiler[Öngörülen \nMaliyet]-Vergiler[Fiili \nMaliyet]","v":{"v":0,"d":"0 ₺"}}]
[null,"Toplam",{"$f":"SUBTOTAL(109,Yiyecek[Öngörülen\nMaliyet])","v":{"v":0,"d":"0 ₺"}},{"$f":"SUBTOTAL(109,Yiyecek[Fiili\nMaliyet])","v":{"v":0,"d":"0 ₺"}},{"$f":"SUBTOTAL(109,Yiyecek[Fark])","v":{"v":0,"d":"0 ₺"}},null,"Belediye",null,null,{"$f":"Vergiler[Öngörülen \nMaliyet]-Vergiler[Fiili \nMaliyet]","v":{"v":0,"d":"0 ₺"}}]
[{"$nulls":6},"Diğer",null,null,{"$f":"Vergiler[Öngörülen \nMaliyet]-Vergiler[Fiili \nMaliyet]","v":{"v":0,"d":"0 ₺"}}]
[null,"Çocuklar","Öngörülen\nMaliyet","Fiili\nMaliyet","Fark",null,"Toplam",{"$f":"SUBTOTAL(109,Vergiler[Öngörülen \nMaliyet])","v":{"v":0,"d":"0 ₺"}},{"$f":"SUBTOTAL(109,Vergiler[Fiili \nMaliyet])","v":{"v":0,"d":"0 ₺"}},{"$f":"SUBTOTAL(109,Vergiler[Fark])","v":{"v":0,"d":"0 ₺"}}]
[null,"Sağlık",null,null,{"$f":"Çocuklar[Öngörülen\nMaliyet]-Çocuklar[Fiili\nMaliyet]","v":{"v":0,"d":"0 ₺"}}]
[null,"Giyim",null,null,{"$f":"Çocuklar[Öngörülen\nMaliyet]-Çocuklar[Fiili\nMaliyet]","v":{"v":0,"d":"0 ₺"}},null,"Kişisel Bakım","Öngörülen\nMaliyet","Fiili\nMaliyet","Fark"]
[null,"Okul ücreti",null,null,{"$f":"Çocuklar[Öngörülen\nMaliyet]-Çocuklar[Fiili\nMaliyet]","v":{"v":0,"d":"0 ₺"}},null,"Sağlık",null,null,{"$f":"KişiselBakım[Öngörülen\nMaliyet]-KişiselBakım[Fiili\nMaliyet]","v":{"v":0,"d":"0 ₺"}}]
[null,"Okul malzemeleri",null,null,{"$f":"Çocuklar[Öngörülen\nMaliyet]-Çocuklar[Fiili\nMaliyet]","v":{"v":0,"d":"0 ₺"}},null,"Kuaför",null,null,{"$f":"KişiselBakım[Öngörülen\nMaliyet]-KişiselBakım[Fiili\nMaliyet]","v":{"v":0,"d":"0 ₺"}}]
[null,"Kuruluş aidatları veya ücretleri",null,null,{"$f":"Çocuklar[Öngörülen\nMaliyet]-Çocuklar[Fiili\nMaliyet]","v":{"v":0,"d":"0 ₺"}},null,"Giyim",null,null,{"$f":"KişiselBakım[Öngörülen\nMaliyet]-KişiselBakım[Fiili\nMaliyet]","v":{"v":0,"d":"0 ₺"}}]
[null,"Öğle yemeği harçlığı",null,null,{"$f":"Çocuklar[Öngörülen\nMaliyet]-Çocuklar[Fiili\nMaliyet]","v":{"v":0,"d":"0 ₺"}},null,"Kuru temizleme",null,null,{"$f":"KişiselBakım[Öngörülen\nMaliyet]-KişiselBakım[Fiili\nMaliyet]","v":{"v":0,"d":"0 ₺"}}]
[null,"Çocuk bakımı",null,null,{"$f":"Çocuklar[Öngörülen\nMaliyet]-Çocuklar[Fiili\nMaliyet]","v":{"v":0,"d":"0 ₺"}},null,"Sağlık kulübü",null,null,{"$f":"KişiselBakım[Öngörülen\nMaliyet]-KişiselBakım[Fiili\nMaliyet]","v":{"v":0,"d":"0 ₺"}}]
[null,"Oyuncak/oyun",null,null,{"$f":"Çocuklar[Öngörülen\nMaliyet]-Çocuklar[Fiili\nMaliyet]","v":{"v":0,"d":"0 ₺"}},null,"Kuruluş aidatları/ücretleri",null,null,{"$f":"KişiselBakım[Öngörülen\nMaliyet]-KişiselBakım[Fiili\nMaliyet]","v":{"v":0,"d":"0 ₺"}}]
[null,"Diğer",null,null,{"$f":"Çocuklar[Öngörülen\nMaliyet]-Çocuklar[Fiili\nMaliyet]","v":{"v":0,"d":"0 ₺"}},null,"Diğer",null,null,{"$f":"KişiselBakım[Öngörülen\nMaliyet]-KişiselBakım[Fiili\nMaliyet]","v":{"v":0,"d":"0 ₺"}}]
[null,"Toplam",{"$f":"SUBTOTAL(109,Çocuklar[Öngörülen\nMaliyet])","v":{"v":0,"d":"0 ₺"}},{"$f":"SUBTOTAL(109,Çocuklar[Fiili\nMaliyet])","v":{"v":0,"d":"0 ₺"}},{"$f":"SUBTOTAL(109,Çocuklar[Fark])","v":{"v":0,"d":"0 ₺"}},null,"Toplam",{"$f":"SUBTOTAL(109,KişiselBakım[Öngörülen\nMaliyet])","v":{"v":0,"d":"0 ₺"}},{"$f":"SUBTOTAL(109,KişiselBakım[Fiili\nMaliyet])","v":{"v":0,"d":"0 ₺"}},{"$f":"SUBTOTAL(109,KişiselBakım[Fark])","v":{"v":0,"d":"0 ₺"}}]
[]
[null,"Yasal","Öngörülen\nMaliyet","Fiili\nMaliyet","Fark",null,"Evcil_Hayvanlar","Öngörülen\nMaliyet","Fiili\nMaliyet","Fark"]
[null,"Avukat",null,null,{"$f":"Yasal[Öngörülen\nMaliyet]-Yasal[Fiili\nMaliyet]","v":{"v":0,"d":"0 ₺"}},null,"Yiyecek",null,null,{"$f":"Evcil_Hayvanlar[Öngörülen\nMaliyet]-Evcil_Hayvanlar[Fiili\nMaliyet]","v":{"v":0,"d":"0 ₺"}}]
[null,"Nafaka",null,null,{"$f":"Yasal[Öngörülen\nMaliyet]-Yasal[Fiili\nMaliyet]","v":{"v":0,"d":"0 ₺"}},null,"Sağlık",null,null,{"$f":"Evcil_Hayvanlar[Öngörülen\nMaliyet]-Evcil_Hayvanlar[Fiili\nMaliyet]","v":{"v":0,"d":"0 ₺"}}]
[null,"Ödemeler",null,null,{"$f":"Yasal[Öngörülen\nMaliyet]-Yasal[Fiili\nMaliyet]","v":{"v":0,"d":"0 ₺"}},null,"Bakım",null,null,{"$f":"Evcil_Hayvanlar[Öngörülen\nMaliyet]-Evcil_Hayvanlar[Fiili\nMaliyet]","v":{"v":0,"d":"0 ₺"}}]
[null,"Diğer",null,null,{"$f":"Yasal[Öngörülen\nMaliyet]-Yasal[Fiili\nMaliyet]","v":{"v":0,"d":"0 ₺"}},null,"Oyuncak",null,null,{"$f":"Evcil_Hayvanlar[Öngörülen\nMaliyet]-Evcil_Hayvanlar[Fiili\nMaliyet]","v":{"v":0,"d":"0 ₺"}}]
[null,"Toplam",{"$f":"SUBTOTAL(109,Yasal[Öngörülen\nMaliyet])","v":{"v":0,"d":"0 ₺"}},{"$f":"SUBTOTAL(109,Yasal[Fiili\nMaliyet])","v":{"v":0,"d":"0 ₺"}},{"$f":"SUBTOTAL(109,Yasal[Fark])","v":{"v":0,"d":"0 ₺"}},null,"Diğer",null,null,{"$f":"Evcil_Hayvanlar[Öngörülen\nMaliyet]-Evcil_Hayvanlar[Fiili\nMaliyet]","v":{"v":0,"d":"0 ₺"}}]
[{"$nulls":6},"Toplam",{"$f":"SUBTOTAL(109,Evcil_Hayvanlar[Öngörülen\nMaliyet])","v":{"v":0,"d":"0 ₺"}},{"$f":"SUBTOTAL(109,Evcil_Hayvanlar[Fiili\nMaliyet])","v":{"v":0,"d":"0 ₺"}},{"$f":"SUBTOTAL(109,Evcil_Hayvanlar[Fark])","v":{"v":0,"d":"0 ₺"}}]
[null,"Birikimler/Yatırımlar","Öngörülen\nMaliyet","Fiili\nMaliyet","Fark"]
[null,"Emeklilik hesabı",null,null,{"$f":"Tasarruf[Öngörülen\nMaliyet]-Tasarruf[Fiili\nMaliyet]","v":{"v":0,"d":"0 ₺"}},null,"Hediyeler ve Bağışlar","Öngörülen\nMaliyet","Fiili\nMaliyet","Fark"]
[null,"Yatırım hesabı",null,null,{"$f":"Tasarruf[Öngörülen\nMaliyet]-Tasarruf[Fiili\nMaliyet]","v":{"v":0,"d":"0 ₺"}},null,"Hayır kurumu 1",null,null,{"$f":"Hediyeler[Öngörülen\nMaliyet]-Hediyeler[Fiili\nMaliyet]","v":{"v":0,"d":"0 ₺"}}]
[null,"Üniversite",null,null,{"$f":"Tasarruf[Öngörülen\nMaliyet]-Tasarruf[Fiili\nMaliyet]","v":{"v":0,"d":"0 ₺"}},null,"Hayır kurumu 2",null,null,{"$f":"Hediyeler[Öngörülen\nMaliyet]-Hediyeler[Fiili\nMaliyet]","v":{"v":0,"d":"0 ₺"}}]
[null,"Diğer",null,null,{"$f":"Tasarruf[Öngörülen\nMaliyet]-Tasarruf[Fiili\nMaliyet]","v":{"v":0,"d":"0 ₺"}},null,"Hayır kurumu 3",null,null,{"$f":"Hediyeler[Öngörülen\nMaliyet]-Hediyeler[Fiili\nMaliyet]","v":{"v":0,"d":"0 ₺"}}]
[null,"Toplam",{"$f":"SUBTOTAL(109,Tasarruf[Öngörülen\nMaliyet])","v":{"v":0,"d":"0 ₺"}},{"$f":"SUBTOTAL(109,Tasarruf[Fiili\nMaliyet])","v":{"v":0,"d":"0 ₺"}},{"$f":"SUBTOTAL(109,Tasarruf[Fark])","v":{"v":0,"d":"0 ₺"}},null,"Toplam",{"$f":"SUBTOTAL(109,Hediyeler[Öngörülen\nMaliyet])","v":{"v":0,"d":"0 ₺"}},{"$f":"SUBTOTAL(109,Hediyeler[Fiili\nMaliyet])","v":{"v":0,"d":"0 ₺"}},{"$f":"SUBTOTAL(109,Hediyeler[Fark])","v":{"v":0,"d":"0 ₺"}}]